bitfinex/quotes_ETHUSD_20251230
["timestamp","ask_amount","ask_price","bid_price","bid_amount"]
[1767072122762,2.084e-05,2941.4,2941.2,2.3847]
[1767072123157,5.04482602,2941.6,2941.2,2.3769084]
[1767072123568,0.02368185,2941.9,2941.1,0.001]
[1767072123769,5.04482602,2941.6,2941.1,0.001]
[1767072126637,8.44444421,2941.6,2941.1,0.001]
[1767072127366,5.04482602,2941.5,2941.1,0.001]
[1767072128044,9.33624548,2941.7,2941.1,2.3857]
[1767072128567,8.46792733,2941.7,2941.1,2.3857]
[1767072128734,10.54901678,2941.7,2941.1,2.3857]
[1767072129165,5.04482602,2941.5,2941.1,2.3857]
[1767072129872,5.04482602,2941.5,2940.7,2.4187055]
[1767072130669,5.04482602,2941.5,2940.7,2.3847]
[1767072130849,8.44454892,2941.5,2940.7,2.3847]
[1767072131062,0.02368185,2941.4,2940.7,2.3847]
[1767072131243,5.04482602,2941.3,2940.7,2.3847]
[1767072135973,5.04482602,2941.3,2939.5,3.99024871]
[1767072135974,5.04482602,2940.9,2939.5,0.001]
[1767072136194,6.82340573,2941.3,2940.1,2.3741]
[1767072136487,5.04482602,2940.9,2940.1,2.3741]
[1767072136643,5.04482602,2940.5,2940.1,2.3741]
[1767072137061,5.04482602,2940.7,2940.1,2.3741]
[1767072137262,5.55167681,2940.9,2940.1,2.3741]
[1767072137580,5.04482602,2940.7,2940.1,2.3741]
[1767072137869,5.04482602,2940.7,2939.9,3.40146578]
[1767072138083,5.04482602,2940.7,2939.9,2.3741]
[1767072138648,5.04482602,2940.7,2939.7,0.892]
[1767072138849,5.04482602,2940.7,2939.8,2.3741]
[1767072139183,5.04482602,2940.7,2939.8,5.77565426]
[1767072139394,5.04482602,2940.7,2939.9,2.3741]
[1767072140578,8.98531503,2940.9,2939.9,2.3741]
[1767072140757,8.98531503,2940.9,2939.9,3.40146135]
[1767072140961,8.98531503,2940.9,2940.0,2.3741]
[1767072141146,0.50685079,2940.9,2940.1,0.03401244]
[1767072141346,3.43420717,2941.0,2940.2,2.3741]
[1767072141781,5.07810273,2940.9,2940.2,2.3741]
[1767072141945,3.43448161,2940.8,2939.9,2.3751]
[1767072143680,3.43448161,2940.8,2939.9,2.3741]
[1767072143987,3.43448161,2940.8,2939.8,2.3741]
[1767072145080,3.45816346,2940.8,2939.8,2.3741]
[1767072145287,5.07810273,2940.6,2939.7,0.892]
[1767072145455,0.03398832,2940.6,2939.7,3.2661]
[1767072145782,0.03398832,2940.6,2939.9,2.3741]
[1767072146089,0.03398832,2940.8,2940.0,2.3741]
[1767072146382,3.43442524,2940.8,2940.0,2.3741]
[1767072146956,0.03398832,2940.8,2940.0,2.3741]
[1767072148584,3.45811261,2940.8,2940.0,2.3741]
[1767072148954,4.6493882,2940.8,2940.0,2.3741]
[1767072149479,4.6493882,2940.8,2939.8,5.77564953]
[1767072149781,4.6493882,2940.8,2939.9,2.3741]
[1767072149966,0.02368185,2940.7,2939.9,2.3741]
[1767072150177,0.03398832,2940.6,2939.9,2.3741]
[1767072150486,0.03398832,2940.6,2939.9,2.3751]
[1767072151085,0.03398832,2940.6,2939.8,3.40154953]
[1767072151385,0.03398832,2940.6,2939.9,2.3741]
[1767072151876,0.03398832,2940.6,2940.0,2.3741]
[1767072152079,0.03398832,2940.6,2939.8,3.40159194]
[1767072152276,0.03398832,2940.6,2939.9,2.3741]
[1767072153483,0.03398832,2940.7,2939.9,2.3741]
[1767072154689,0.03398832,2940.7,2939.9,5.77555217]
[1767072154886,8.45463177,2941.0,2939.9,5.77555217]
[1767072154887,0.03398832,2940.8,2940.0,2.3741]
[1767072155256,0.03398832,2940.9,2940.0,2.3741]
[1767072156084,3.43439418,2940.9,2939.8,3.40159194]
[1767072156487,3.43439418,2940.9,2939.9,2.3741]
[1767072156981,3.43439418,2940.9,2939.8,6.80318388]
[1767072157190,3.43439418,2940.9,2939.9,2.3741]
[1767072157398,0.73143363,2940.8,2939.9,2.3741]
[1767072157596,0.03398832,2940.7,2939.9,2.3741]
[1767072157997,0.03398832,2940.7,2939.8,3.40159194]
[1767072158295,0.03398832,2940.7,2939.9,2.3741]
[1767072158972,0.03398832,2940.7,2939.8,6.80418388]
[1767072159281,0.03398832,2940.7,2939.9,2.3741]
[1767072162486,0.03398832,2940.7,2939.8,3.40259194]
[1767072162665,0.03398832,2940.7,2940.0,2.3741]
[1767072163375,0.03398832,2940.7,2939.9,3.40144815]
[1767072163565,0.03398832,2940.7,2940.0,2.3741]
[1767072163762,3.39437719,2941.1,2940.0,2.3741]
[1767072163968,3.3998572,2941.3,2940.0,2.4081136]
[1767072164167,0.02368185,2941.2,2940.0,2.4081136]
[1767072165596,3.42373414,2941.2,2940.2,2.3741]
[1767072165781,4.10846146,2941.2,2940.4,2.3741]
[1767072166170,4.10846146,2941.2,2940.4,2.3679]
[1767072167270,4.11046146,2941.2,2940.4,2.3679]
[1767072167472,7.51051375,2941.2,2940.4,2.3679]
[1767072167686,0.02368185,2941.0,2940.4,2.3679]
[1767072167887,0.77710141,2941.0,2940.5,0.3978]
[1767072168074,0.77710141,2941.0,2940.2,3.2609]
[1767072168275,0.77710141,2941.0,2940.3,2.3679]
[1767072168680,0.77710141,2941.0,2940.2,0.893]
[1767072168889,0.77710141,2941.0,2940.3,2.3679]
[1767072169605,0.77710141,2941.0,2940.2,0.893]
[1767072169801,0.75341956,2941.0,2940.3,2.3679]
[1767072170100,3.40009785,2941.1,2940.3,2.3679]
[1767072171294,3.40009785,2941.1,2940.1,2.3679]
[1767072171520,0.91668185,2941.0,2940.1,2.3679]
[1767072171682,4.31695517,2941.0,2940.1,2.3679]
[1767072171883,4.31695517,2941.0,2940.1,3.40121232]
[1767072172105,0.43169552,2940.9,2940.1,3.40121232]
[1767072172279,0.43169552,2940.9,2940.2,2.3679]
[1767072172799,0.43169552,2940.9,2940.1,3.40121232]
[1767072173112,0.43169552,2940.9,2940.2,2.3679]
[1767072173282,0.893,2941.0,2940.4,2.3679]
[1767072173687,0.893,2941.0,2940.2,3.43506144]
[1767072173988,0.893,2941.0,2940.4,2.3679]
[1767072174385,0.893,2941.0,2940.3,0.03401013]
[1767072174785,0.893,2941.0,2940.4,2.3679]
[1767072175109,1.83030943,2941.0,2940.4,2.3679]
[1767072175710,0.93730943,2941.0,2940.4,2.3679]
[1767072176214,3.42569329,2941.2,2940.3,0.03401013]
[1767072176508,0.002,2940.9,2940.3,2.4789]
[1767072176910,0.002,2940.9,2940.4,2.4789]
[1767072179592,0.002,2940.9,2940.2,5.87999214]
[1767072179809,0.002,2940.9,2940.3,2.4789]
[1767072180387,0.002,2940.9,2940.3,5.87989351]
[1767072180612,0.002,2940.9,2940.5,2.4789]
[1767072180791,0.002,2940.9,2940.4,3.40089574]
[1767072180792,0.002,2941.2,2940.7,2.4789]
[1767072183212,0.002,2941.2,2940.6,3.43466811]
[1767072183442,0.002,2941.2,2940.7,2.4789]
[1767072183613,3.42312567,2941.7,2940.7,2.4789]
[1767072183614,0.893,2941.5,2940.7,2.4789]
[1767072186020,0.893,2941.6,2940.7,5.87942012]
[1767072186214,0.893,2941.6,2940.8,2.4789]
[1767072186915,3.4014368,2941.7,2940.5,2.4789]
[1767072187104,0.893,2941.6,2940.5,2.4789]
[1767072187307,1.66473988,2941.6,2940.4,2.4789]
[1767072187490,1.66473988,2941.6,2940.7,2.4789]
[1767072187923,6.71916076,2941.6,2940.7,2.4789]
[1767072188096,3.42330789,2941.5,2940.7,2.4789]
[1767072188522,3.42330789,2941.5,2940.5,3.40077767]
[1767072188730,1.35420046,2941.4,2940.5,5.87967767]
[1767072188912,1.35420046,2941.4,2940.6,2.4789]
[1767072190606,2.24720046,2941.4,2940.6,2.4789]
[1767072191421,2.24720046,2941.4,2940.5,3.40075362]
[1767072191729,2.24720046,2941.4,2940.6,2.4789]
[1767072191934,2.24720046,2941.4,2940.7,2.4789]
[1767072192435,0.77373988,2941.6,2940.8,2.4789]
[1767072192631,0.77373988,2941.6,2940.7,3.40054823]
[1767072192632,0.002,2941.6,2941.0,2.4789]
[1767072194536,0.002,2941.6,2940.8,2.4789]
[1767072194966,0.002,2941.6,2940.9,2.4789]
[1767072197537,0.002,2941.6,2941.0,2.3758]
[1767072198956,7.27915199,2941.9,2941.0,2.3758]
[1767072198957,3.87994215,2941.9,2941.0,2.3758]
[1767072199125,0.893,2942.0,2941.2,2.3758]
[1767072199320,4.2920839,2942.0,2941.2,2.3758]
[1767072199520,4.2920839,2942.0,2941.0,3.4001788]
[1767072199842,4.2920839,2942.0,2941.1,2.3758]
[1767072200041,0.77167056,2941.9,2941.1,2.3758]
[1767072200345,0.77167056,2941.9,2941.0,3.4001788]
[1767072200549,0.002,2941.6,2941.1,2.3758]
[1767072201849,0.002,2942.1,2941.2,2.3758]
[1767072202151,0.895,2942.1,2941.2,2.3758]
[1767072202557,0.895,2942.1,2941.1,3.4000825]
[1767072202558,9.34323802,2942.1,2941.3,2.3758]
[1767072202729,5.0493041,2941.9,2941.3,2.3758]
[1767072203133,5.0493041,2941.9,2941.0,5.77591946]
[1767072203334,5.0493041,2941.9,2941.1,2.3758]
[1767072203874,5.0493041,2941.9,2941.2,2.3758]
[1767072204159,5.0493041,2941.5,2940.3,1.9283476]
[1767072204371,5.0493041,2941.3,2940.6,2.3758]
[1767072204533,5.0493041,2941.5,2940.6,2.3758]
[1767072204935,3.39974161,2941.4,2940.6,2.3758]
[1767072205870,6.79948322,2941.4,2940.6,2.3758]
[1767072207663,3.39974161,2941.4,2940.6,2.3758]
[1767072208853,6.79948322,2941.4,2940.6,2.3758]
[1767072211266,3.39974161,2941.4,2940.6,2.3758]
[1767072211470,4.29264711,2941.5,2940.7,2.4098055]
[1767072211673,0.893,2941.5,2940.8,2.3758]
[1767072211967,3.40155341,2941.6,2940.6,5.0493041]
[1767072211968,3.40155341,2941.6,2941.0,2.3758]
[1767072212152,3.40155341,2941.6,2941.1,2.40980088]
[1767072212672,3.40155341,2941.6,2941.1,2.3758]
[1767072213541,0.002,2941.6,2941.1,2.3758]
[1767072213738,0.002,2941.6,2940.7,0.0340055]
[1767072213739,3.39940828,2941.7,2940.9,2.3758]
[1767072213973,6.79881656,2941.7,2940.9,2.3758]
[1767072216169,3.39940828,2941.7,2940.9,2.3758]
[1767072216872,11.8478628,2941.8,2940.9,2.3758]
[1767072219464,3.39927935,2941.8,2940.9,2.3758]
[1767072219670,6.7985587,2941.8,2941.1,2.3758]
[1767072219992,5.0493041,2941.7,2941.1,2.3758]
[1767072221271,6.7985587,2941.8,2941.2,0.03399972]
[1767072221272,3.39927935,2941.8,2941.2,0.03399972]
[1767072221470,3.39927935,2941.8,2941.3,2.3758]
[1767072222081,6.7985587,2941.8,2941.3,2.3758]
[1767072222249,7.98334498,2941.8,2941.0,2.3768]
[1767072222452,13.03264908,2941.8,2941.0,2.3768]
[1767072222970,5.0493041,2941.6,2941.0,2.3768]
[1767072223172,7.98334498,2941.8,2941.0,2.3768]
[1767072223173,5.0493041,2941.4,2941.0,2.3768]
[1767072223783,5.0493041,2941.4,2940.6,2.3758]
[1767072223985,8.44910747,2941.4,2940.6,2.3758]
[1767072224190,5.0493041,2941.2,2940.6,2.3758]
[1767072226155,6.79960674,2941.4,2940.6,2.3758]
[1767072226156,5.0493041,2941.0,2940.6,2.3758]
[1767072226860,3.4000884,2941.1,2940.6,2.3758]
[1767072227970,6.8001768,2941.1,2940.6,2.3758]
[1767072228161,7.98512489,2941.1,2940.6,2.3758]
[1767072229295,5.0493041,2941.0,2940.6,2.3758]
[1767072229902,7.98512489,2941.1,2940.6,2.3758]
[1767072230184,4.58503649,2941.1,2940.6,2.3758]
[1767072231574,4.58503649,2941.1,2940.7,0.0340055]
[1767072231778,3.40001884,2941.2,2940.8,2.2953]
[1767072231973,6.80003768,2941.2,2940.8,2.2953]
[1767072232177,5.0493041,2941.0,2940.5,2.2953]
[1767072233699,0.034,2941.1,2939.8,0.001]
[1767072233700,5.0493041,2940.8,2939.8,0.001]
[1767072233871,5.0493041,2940.8,2939.9,2.2953]
[1767072234374,5.0493041,2940.6,2939.9,2.2953]
[1767072235903,5.0493041,2940.7,2939.9,2.2953]
[1767072236093,9.34262373,2940.9,2939.9,2.32931476]
[1767072236293,12.74294336,2940.9,2939.9,2.32931476]
[1767072236605,14.08794626,2940.9,2939.9,2.32931476]
[1767072237588,10.68762663,2940.9,2939.9,2.32931476]
[1767072237792,14.08794626,2940.9,2939.9,2.32931476]
[1767072238320,0.03977287,2940.8,2939.9,2.33031476]
[1767072240105,3.40055088,2940.7,2939.9,2.2963]
[1767072240307,3.40055088,2940.7,2940.0,2.4735]
[1767072240508,8.44985498,2940.7,2940.0,2.4735]
[1767072242108,3.40001844,2941.2,2940.2,2.4735]
[1767072242109,3.3999728,2941.2,2940.2,2.4735]
[1767072242309,3.3999728,2941.2,2940.4,2.4735]
[1767072242484,3.3998572,2941.3,2940.6,2.4735]
[1767072242805,3.39984244,2941.4,2940.5,2.4735]
[1767072243001,11.8490185,2941.3,2940.7,2.4735]
[1767072243208,0.03977287,2941.2,2940.7,2.4735]
[1767072244287,3.4000884,2941.1,2940.7,2.4735]
[1767072244487,0.03977287,2941.0,2940.7,2.4735]
[1767072244805,3.40001328,2941.2,2940.7,2.4735]
[1767072245698,3.40201328,2941.2,2940.7,2.4735]
[1767072246609,0.002,2941.2,2940.7,2.4735]
[1767072247396,3.39974161,2941.4,2940.6,2.4735]
[1767072247608,5.0493041,2941.7,2940.6,2.50750666]
[1767072247609,3.39951047,2941.6,2940.6,2.50750666]
[1767072247909,0.03977287,2941.5,2940.7,2.4735]
[1767072248483,3.39974161,2941.4,2940.7,2.4735]
[1767072248804,5.08907697,2941.3,2940.7,2.4735]
[1767072250909,3.3999728,2941.2,2940.7,2.4735]
[1767072251281,3.43974567,2941.2,2940.7,2.4735]
[1767072251909,0.03977287,2941.2,2940.7,2.4735]
[1767072252488,3.39990226,2941.3,2940.7,2.4735]
[1767072252889,3.39974161,2941.4,2940.7,2.4735]
[1767072253413,0.03977287,2941.3,2940.7,2.4735]
[1767072254408,3.39974161,2941.4,2940.9,2.4735]
[1767072255801,3.39974161,2941.4,2940.6,2.3213]
[1767072256219,3.43942691,2941.5,2940.6,2.3213]
[1767072263198,3.44142691,2941.5,2940.6,2.3213]
[1767072268632,3.44142691,2941.5,2940.8,2.3213]
[1767072274448,0.002,2941.5,2940.6,2.3213]
[1767072274653,3.40165404,2941.5,2940.6,2.3213]
[1767072274829,3.40165404,2941.5,2940.7,0.0340055]
[1767072275145,3.40165404,2941.5,2940.8,2.3213]
[1767072275353,0.002,2941.5,2940.8,2.3213]
[1767072276234,6.8005587,2941.8,2940.8,2.3213]
[1767072276439,7.6935587,2941.8,2940.8,2.3213]
[1767072277557,6.8005587,2941.8,2940.8,2.3213]
[1767072277717,7.6935587,2941.8,2941.0,2.3213]
[1767072277918,7.6935587,2941.8,2941.2,2.3213]
[1767072277919,6.8005587,2941.8,2941.2,2.3213]
[1767072278142,3.40127935,2941.8,2941.2,2.3213]
[1767072278463,3.40094571,2942.1,2941.2,2.3213]
[1767072278755,0.002,2942.1,2941.2,2.35529972]
[1767072279044,0.002,2942.1,2941.3,2.3213]
[1767072279227,0.002,2941.8,2941.3,2.3213]
[1767072279427,0.002,2942.1,2941.4,2.3213]
[1767072279626,3.905624,2942.8,2941.4,2.3213]
[1767072279627,0.002,2942.7,2941.4,2.3213]
[1767072279816,2.2723,2942.6,2941.7,2.3213]
[1767072281430,5.67066571,2942.6,2941.7,2.3213]
[1767072282035,2.2723,2942.5,2941.7,2.3213]
[1767072286024,2.2743,2942.5,2941.7,2.3213]
[1767072286638,5.67282037,2942.5,2941.7,2.3213]
[1767072286832,9.97845935,2942.5,2941.7,2.3213]
[1767072289855,6.57993898,2942.5,2941.7,2.3213]
[1767072290330,9.97845935,2942.5,2941.7,2.3213]
[1767072298341,2.4013,2942.6,2941.8,0.03399279]
[1767072299450,2.4013,2942.6,2941.6,0.0339951]
[1767072299837,2.4033,2942.5,2941.6,0.0339951]
[1767072300033,2.4033,2942.5,2941.6,3.43345341]
[1767072300338,5.80177823,2942.5,2941.7,0.43264534]
[1767072301265,2.4013,2942.4,2941.7,0.43264534]
[1767072302968,2.4013,2942.3,2941.7,0.43264534]
[1767072303274,2.4013,2942.3,2941.5,0.892]
[1767072305246,2.4013,2942.2,2941.5,0.892]
[1767072306450,2.4013,2942.2,2941.5,0.893]
[1767072309598,2.4013,2942.4,2941.6,0.0339951]
[1767072309767,0.002,2942.5,2941.6,0.0339951]
[1767072309963,0.002,2942.5,2941.7,0.43265721]
[1767072310166,0.002,2942.5,2941.8,0.03399279]
[1767072313269,0.002,2942.9,2942.0,5.05088004]
[1767072313470,5.78752657,2943.0,2942.1,0.03398932]
[1767072313973,5.78752657,2943.0,2941.9,0.03399163]
[1767072314298,5.78752657,2943.0,2942.0,0.34332175]
[1767072314472,5.78752657,2943.0,2942.1,0.03398932]
[1767072314672,5.78752657,2943.0,2941.9,3.39910047]
[1767072314673,2.3876,2942.5,2941.5,0.001]
[1767072314890,0.03398932,2942.4,2941.5,0.001]
[1767072315093,2.42158932,2942.4,2941.5,0.001]
[1767072315671,2.42158932,2942.4,2941.6,0.001]
[1767072315978,2.3711,2942.3,2941.6,0.001]
[1767072316697,2.3711,2942.3,2941.6,0.0349951]
[1767072316992,2.3711,2942.3,2941.6,0.3785637]
[1767072317798,5.05088004,2942.7,2941.6,0.3785637]
[1767072317799,5.76962021,2942.5,2941.6,0.3785637]
[1767072322493,3.39842367,2942.6,2941.6,3.77806983]
[1767072322699,6.66324809,2942.8,2941.6,3.77806983]
[1767072322880,7.51091909,2942.8,2941.7,0.88299499]
[1767072323083,7.51091909,2942.8,2941.8,0.03399279]
[1767072323479,5.76933971,2942.7,2941.8,0.03399279]
[1767072323681,9.20156874,2942.7,2941.8,0.03399279]
[1767072323886,6.79647942,2942.7,2941.6,0.0349951]
[1767072324186,2.3731,2942.5,2941.6,0.001]
[1767072324387,2.40708932,2942.5,2941.6,0.001]
[1767072324603,2.3711,2942.3,2941.6,0.001]
[1767072328811,2.3711,2942.1,2941.6,0.001]
[1767072329718,5.04833682,2942.2,2941.6,0.001]
[1767072330013,7.41943682,2942.2,2941.6,0.001]
[1767072330213,11.38775205,2942.2,2941.6,0.001]
[1767072330412,10.81826655,2942.2,2941.6,0.001]
[1767072330812,5.04833682,2942.0,2941.6,0.001]
[1767072332012,7.41943682,2942.0,2941.6,0.001]
[1767072332387,2.3711,2942.0,2941.6,0.001]
[1767072333089,5.77014965,2942.0,2941.6,0.001]
[1767072333293,2.3711,2941.9,2941.6,0.001]
[1767072335317,5.77028016,2941.9,2941.6,0.001]
[1767072335686,7.41943682,2941.8,2941.5,0.001]
[1767072335893,2.3711,2941.8,2941.5,0.001]
[1767072337507,2.3711,2941.7,2941.5,0.001]
[1767072339126,3.74359723,2941.9,2941.5,0.001]
[1767072339326,2.3711,2941.9,2941.5,0.001]
[1767072339897,0.002,2941.8,2941.5,0.001]
[1767072340429,2.3731,2941.8,2941.5,0.001]
[1767072341235,0.002,2941.8,2941.5,0.001]
[1767072341418,2.3711,2942.4,2941.5,0.001]
[1767072341729,2.40508932,2942.3,2941.5,0.50593368]
[1767072341906,2.3711,2942.2,2941.5,0.001]
[1767072342227,0.03398932,2942.3,2941.5,0.001]
[1767072342410,2.3711,2942.4,2941.5,0.001]
[1767072342606,2.3711,2942.4,2941.5,0.03499626]
[1767072343125,5.76970348,2942.4,2941.5,0.03499626]
[1767072343320,5.76970348,2942.4,2941.6,0.34347129]
[1767072344931,3.39860348,2942.4,2941.6,0.34347129]
[1767072345135,0.002,2942.5,2941.6,0.34347129]
[1767072345318,0.002,2942.5,2941.7,0.03399394]
[1767072346519,3.4004708,2942.5,2941.7,0.03399394]
[1767072346716,0.002,2942.4,2941.6,3.77696504]
[1767072346925,0.002,2942.5,2941.7,0.97183019]
[1767072347125,0.002,2942.5,2941.6,3.43349375]
[1767072348938,2.3711,2942.6,2941.6,3.43349375]
[1767072349345,5.05033682,2942.8,2941.7,5.04833682]
[1767072349346,5.79112545,2942.8,2941.7,5.04833682]
[1767072349550,5.79112545,2942.8,2941.8,0.03399279]
[1767072349754,5.79112545,2942.8,2941.9,0.50823296]
[1767072349912,5.79112545,2942.8,2942.0,0.03399048]
[1767072350609,10.83946227,2942.8,2942.0,0.03399048]
[1767072351160,7.44133682,2942.8,2942.0,0.03399048]
[1767072351352,7.44133682,2942.8,2942.0,0.92599048]
[1767072352537,2.393,2942.8,2942.0,0.92599048]
[1767072353166,10.83924128,2943.0,2942.0,0.92599048]
[1767072353464,10.83924128,2943.0,2942.0,4.32501469]
[1767072353673,0.002,2942.8,2942.1,0.48332477]
[1767072357459,2.391,2942.9,2942.1,0.48332477]
[1767072357669,8.44824128,2943.0,2942.1,0.48332477]
[1767072357959,5.8648789,2943.1,2942.2,5.08232499]
[1767072357960,2.4671,2943.1,2942.2,5.08232499]
[1767072358163,0.002,2943.3,2942.3,0.39572214]
[1767072358341,0.002,2943.3,2942.4,0.03398586]
[1767072360173,3.39954863,2943.3,2942.4,0.03398586]
[1767072360380,0.002,2942.8,2942.4,0.03398586]
[1767072360668,0.002,2942.8,2942.3,0.39572214]
[1767072360846,0.002,2942.8,2942.4,0.37944616]
[1767072362180,0.002,2942.8,2942.4,0.41343202]
[1767072363089,0.002,2942.8,2942.4,0.37944616]
[1767072363392,2.4671,2943.2,2942.4,0.37944616]
[1767072363974,2.4671,2943.1,2942.4,1.27144616]
[1767072364660,5.04833682,2943.2,2942.4,1.27144616]
[1767072364857,5.04833682,2943.2,2942.5,0.46701407]
[1767072365174,5.86667974,2943.3,2942.5,0.46701407]
[1767072365175,3.39957974,2943.3,2942.5,0.46701407]
[1767072365382,5.86667974,2943.3,2942.4,0.892]
[1767072365758,3.44791656,2943.4,2942.4,0.892]
[1767072365959,2.4691,2943.5,2942.5,5.08232152]
[1767072366159,2.4691,2943.5,2942.6,0.9039551]
[1767072366358,2.4691,2943.5,2942.5,0.0339847]
[1767072366561,2.4691,2943.5,2942.6,3.39835519]
[1767072366756,2.4691,2943.5,2942.7,0.03398239]
[1767072366978,5.8664471,2943.5,2942.5,0.0339847]
[1767072367182,0.002,2943.2,2942.5,0.0339847]
[1767072367481,0.002,2943.2,2942.6,0.9372868]
[1767072369991,0.002,2943.5,2942.6,4.33562882]
[1767072370154,0.002,2943.5,2942.7,0.03398239]
[1767072370485,0.002,2943.5,2942.6,4.33562882]
[1767072370486,0.002,2943.5,2942.8,0.03398124]
[1767072370849,0.002,2943.5,2942.7,0.03398239]
[1767072371055,0.002,2943.5,2942.8,0.43696112]
[1767072372671,2.4691,2943.6,2942.8,0.43696112]
[1767072372870,2.4671,2943.5,2942.8,0.43696112]
[1767072373070,2.4671,2943.5,2942.5,3.4324237]
[1767072373565,2.4671,2943.4,2942.5,0.0339847]
[1767072375990,2.4671,2943.4,2942.5,3.432453]
[1767072377283,2.4671,2943.4,2942.5,0.0339847]
[1767072379181,5.04833682,2943.1,2942.3,3.39867668]
[1767072379381,5.04833682,2943.1,2942.5,0.892]
[1767072379584,3.39746135,2943.4,2942.1,4.7398653]
[1767072379585,7.53893682,2942.9,2942.1,4.7398653]
[1767072379903,7.53893682,2942.9,2942.2,0.892]
[1767072380869,2.4906,2942.9,2942.2,4.29081278]
[1767072381078,2.4906,2942.9,2942.3,0.43248021]
[1767072382095,2.4906,2942.9,2942.5,0.001]
[1767072382394,7.53893682,2942.9,2942.5,0.001]
[1767072383796,2.4906,2942.9,2942.5,0.001]
[1767072389078,5.8886145,2942.9,2942.5,0.001]
[1767072390410,2.4906,2942.9,2942.5,0.001]
[1767072394608,5.88861126,2942.9,2942.5,0.001]
[1767072394909,2.4906,2942.9,2942.5,0.001]
[1767072406416,5.81870317,2943.1,2942.5,0.001]
[1767072407601,2.4209,2943.1,2942.5,0.001]
[1767072408918,5.81868106,2943.1,2942.5,0.001]
[1767072409822,2.4209,2943.0,2942.5,0.001]
[1767072411922,5.81857023,2943.2,2942.5,0.001]
[1767072412097,2.4209,2943.1,2942.5,0.001]
[1767072414307,2.4209,2943.0,2942.5,0.001]
[1767072416018,2.3175,2943.2,2942.5,0.001]
[1767072424227,2.3175,2943.2,2942.5,0.34097017]
[1767072428240,5.71516782,2943.2,2942.5,0.34097017]
[1767072429546,2.3175,2943.2,2942.5,0.34097017]
[1767072430113,2.3195,2943.4,2942.6,0.03398355]
[1767072430444,2.3195,2943.4,2942.7,0.37734141]
[1767072430633,2.3195,2943.4,2942.8,0.03398124]
[1767072431215,2.3195,2943.4,2942.7,0.37734141]
[1767072432821,5.71694256,2943.4,2942.7,0.37734141]
[1767072433026,5.71694256,2943.4,2942.5,0.34097017]
[1767072433436,2.3195,2943.4,2942.5,3.77341879]
[1767072434516,2.3175,2943.3,2942.5,0.37495487]
[1767072434734,2.3175,2943.3,2942.5,0.34097017]
[1767072435238,0.002,2943.4,2942.5,3.77341744]
[1767072435444,0.002,2943.4,2942.6,0.37734174]
[1767072436031,2.4435,2943.4,2942.6,0.37734174]
[1767072437132,0.002,2943.5,2942.6,3.39833436]
[1767072437736,2.4435,2943.5,2942.6,3.39833436]
[1767072437919,2.4435,2943.5,2942.7,0.03398239]
[1767072438120,5.84082138,2943.5,2942.6,0.03398355]
[1767072438341,5.84082138,2943.5,2942.6,0.92598355]
[1767072440353,2.4435,2943.5,2942.7,0.43254071]
[1767072446428,3.39921228,2943.6,2942.7,0.4665231]
[1767072447151,3.39898145,2943.8,2943.0,5.04342647]
[1767072447361,3.39898145,2943.8,2942.8,5.04342647]
[1767072447664,3.39898145,2943.8,2942.9,0.88741779]
[1767072447665,3.3989746,2943.8,2942.9,0.88741779]
[1767072447845,5.8404746,2943.8,2942.9,0.88741779]
[1767072449461,0.002,2943.9,2943.0,5.0774054]
[1767072450140,2.4435,2944.0,2943.2,5.04342647]
[1767072450348,5.84024125,2944.0,2943.1,3.39777785]
[1767072450543,2.4435,2944.0,2943.2,0.34317568]
[1767072454347,2.4435,2944.0,2943.1,0.92597777]
[1767072454533,2.4435,2944.0,2943.1,4.32366909]
[1767072454735,2.4435,2944.0,2943.2,3.39766003]
[1767072455472,2.4435,2944.0,2943.1,4.32370987]
[1767072459859,5.84026856,2944.0,2943.1,0.92597777]
[1767072460157,5.84026856,2944.0,2942.6,0.001]
[1767072460158,2.4415,2943.5,2942.6,0.001]
[1767072460477,2.4415,2943.5,2942.7,0.892]
[1767072460773,2.4415,2943.7,2942.7,4.29023449]
[1767072461075,2.4415,2943.7,2942.8,0.4325218]
[1767072461454,0.92369379,2943.9,2942.7,4.29023449]
[1767072461455,2.4415,2943.5,2942.9,0.03398008]
[1767072461655,2.4415,2943.5,2942.7,3.39820667]
[1767072461867,5.04342647,2943.8,2942.8,8.47551781]
[1767072461868,5.83853709,2943.8,2942.8,8.47551781]
[1767072462050,3.39703709,2943.8,2942.8,8.44153657]
[1767072462250,2.4415,2943.7,2942.9,0.84415366]
[1767072462776,2.4415,2943.7,2942.8,3.3981101]
[1767072463373,2.4415,2943.7,2942.8,3.43209134]
[1767072464351,2.4415,2943.7,2942.8,3.3981101]
[1767072466581,5.83858924,2943.7,2942.7,3.39823971]
[1767072466883,2.3893,2943.6,2942.8,0.001]
[1767072467091,2.3893,2943.6,2942.9,0.33992397]
[1767072473076,5.78631464,2943.8,2942.9,0.33992397]
[1767072473699,5.78631464,2943.8,2942.9,0.34092397]
[1767072473869,2.3893,2943.7,2942.9,0.34092397]
[1767072480399,3.39709165,2943.7,2942.9,0.34092397]
[1767072480592,2.308,2943.6,2942.9,0.34092397]
[1767072483416,5.70501979,2943.8,2943.0,0.37400367]
[1767072485510,0.002,2943.9,2943.1,0.92597777]
[1767072485682,0.002,2943.9,2943.3,5.04342647]
[1767072485883,0.002,2943.9,2943.1,5.96940424]
[1767072486094,0.002,2943.9,2943.3,5.04342647]
[1767072486383,0.002,2943.9,2943.4,0.50434265]
[1767072487897,0.002,2943.9,2943.5,3.39731612]
[1767072488407,0.002,2943.9,2943.4,3.90172524]
[1767072489681,0.002,2943.9,2943.4,7.29915678]
[1767072490715,0.002,2943.9,2943.4,3.90272524]
[1767072490909,0.002,2943.9,2943.5,0.50893355]
[1767072491212,0.002,2943.9,2943.6,0.892]
[1767072492682,0.002,2943.9,2943.5,0.50893355]
[1767072496127,2.3086,2943.8,2943.4,0.001]
[1767072499005,0.002,2943.9,2943.4,0.001]
[1767072506935,2.3106,2943.9,2943.4,0.001]
[1767072519270,0.002,2943.9,2943.4,0.001]